[Event "I Liga Centralne Srbije"]
[Site "Bajina Bašta, Serbia"]
[Date "2020.10.17"]
[Round "11.1"]
[White "Brenjo, Slavisa"]
[Black "Ivic, Velimir"]
[Result "0-1"]
[ECO "B33"]
[WhiteElo "2412"]
[BlackElo "2548"]
[Annotator "Knez"]
[PlyCount "84"]
[EventDate "2020.??.??"]
[TimeControl "90"]

1. e4 {[%emt 0:23:12]} c5 {[%emt 0:00:11]} 2. Nf3 {[%emt 0:00:20]} Nc6 {
[%emt 0:00:15]} 3. d4 {[%emt 0:00:07]} cxd4 {[%emt 0:00:05]} 4. Nxd4 {[%emt 0:
00:06]} Nf6 {[%emt 0:00:07]} 5. Nc3 {[%emt 0:00:10]} e5 {[%emt 0:00:07]} 6.
Ndb5 {[%emt 0:00:09]} d6 {[%emt 0:00:04]} 7. Bg5 {[%emt 0:00:41]} a6 {[%emt 0:
00:18]} 8. Na3 {[%emt 0:00:07]} b5 {[%emt 0:00:13]} 9. Bxf6 {[%emt 0:02:21]}
gxf6 {[%emt 0:00:10]} 10. Nd5 {[%emt 0:00:07]} f5 {[%emt 0:01:35]} 11. c3 {
[%emt 0:00:21]} Bg7 {[%emt 0:01:06]} 12. exf5 {[%emt 0:01:08]} Bxf5 {[%emt 0:
00:16]} 13. Nc2 {[%emt 0:00:11]} O-O {[%emt 0:01:01]} 14. Nce3 {[%emt 0:01:04]}
Be6 {[%emt 0:00:32]} 15. g3 {[%emt 0:01:57]} f5 {[%emt 0:05:07]} 16. Bg2 {
[%emt 0:00:49]} f4 {[%emt 0:00:42]} 17. Nc2 {[%emt 0:01:16]} Kh8 {[%emt 0:00:
52]} 18. O-O {[%emt 0:07:06]} Ra7 {[%emt 0:02:17]} 19. a4 {[%emt 0:03:49]} Raf7
{[%emt 0:15:37]} 20. axb5 {[%emt 0:01:24]} axb5 {[%emt 0:00:55]} 21. Be4 {
[%emt 0:30:44]} Bf5 {[%emt 0:02:05]} 22. Bxf5 {[%emt 0:06:42]} Rxf5 {[%emt 0:
00:06]} 23. Ra6 {[%emt 0:01:22]} Qc8 {[%emt 0:09:19]} 24. Rb6 {[%emt 0:02:46]}
Rg5 {[%emt 0:07:43]} 25. Rxc6 {[%emt 0:14:50]} Qxc6 {[%emt 0:05:38]} 26. h4 {
[%emt 0:01:42]} Rg6 {[%emt 0:00:33]} 27. Ne7 {[%emt 0:01:18]} Qe8 {[%emt 0:00:
11]} 28. Nxg6+ {[%emt 0:00:23]} Qxg6 {[%emt 0:00:05]} 29. h5 {[%emt 0:01:46]}
Qg5 {[%emt 0:04:10]} 30. Ne1 {[%emt 0:03:06]} e4 {[%emt 0:17:12]} 31. Qxd6 {
[%emt 0:02:49]} fxg3 {[%emt 0:01:58]} 32. Qxg3 {[%emt 0:04:02]} Qxh5 {[%emt 0:
00:19]} 33. Ng2 {[%emt 0:00:38]} Be5 {[%emt 0:05:48]} 34. Qh4 {[%emt 0:00:15]}
Qf3 {[%emt 0:03:48]} 35. Qe7 {[%emt 0:05:07]} Qf5 {[%emt 0:01:47]} 36. Qh4 {
[%emt 0:03:44]} Rg8 {[%emt 0:00:58]} 37. Re1 {[%emt 0:00:42]} Qf3 {[%emt 0:00:
39]} 38. Qh1 {[%emt 0:00:33]} Rg5 {[%emt 0:03:53]} 39. Kf1 {[%emt 0:01:22]} Rh5
{[%emt 0:00:43]} 40. Qg1 {[%emt 0:00:14]} Bh2 {[%emt 0:00:17]} 41. Qh1 {
[%emt 0:00:51]} Bg3 {[%emt 0:00:09]} 42. Qg1 {[%emt 0:00:12]} Bxf2 {[%emt 0:00:
16]} 0-1

[Event "I Liga Centralne Srbije"]
[Site "Bajina Bašta, Serbia"]
[Date "2020.10.17"]
[Round "11.1"]
[White "Perunovic, Miodrag"]
[Black "Dizdarevic, Emir"]
[Result "1/2-1/2"]
[ECO "E11"]
[WhiteElo "2440"]
[BlackElo "2444"]
[Annotator "Knez"]
[PlyCount "66"]
[EventDate "2020.??.??"]
[TimeControl "90"]
[WhiteClock "0:15:22"]
[BlackClock "0:04:10"]

1. d4 {[%emt 0:00:00]} Nf6 {[%emt 0:00:00]} 2. c4 {[%emt 0:00:00]} e6 {[%emt 0:
00:00]} 3. Nf3 {[%emt 0:00:00]} Bb4+ {[%emt 0:00:00]} 4. Bd2 {[%emt 0:00:00]}
Bxd2+ {[%emt 0:00:00]} 5. Qxd2 {[%emt 0:00:00]} O-O {[%emt 0:00:00]} 6. g3 {
[%emt 0:00:00]} d5 {[%emt 0:00:00]} 7. Bg2 {[%emt 0:00:00]} Bd7 {[%emt 0:00:00]
} 8. c5 {[%emt 0:00:00]} b6 {[%emt 0:00:00]} 9. cxb6 {[%emt 0:00:00]} axb6 {
[%emt 0:00:00]} 10. O-O {[%emt 0:00:00]} c5 {[%emt 0:00:00]} 11. b3 {[%emt 0:
00:00]} Nc6 {[%emt 0:00:00]} 12. Rc1 {[%emt 0:00:00]} Ne4 {[%emt 0:00:00]} 13.
Qb2 {[%emt 0:00:00]} Qf6 {[%emt 0:00:00]} 14. e3 {[%emt 0:00:00]} cxd4 {
[%emt 0:00:00]} 15. exd4 {[%emt 0:00:00]} Rfc8 {[%emt 0:00:00]} 16. Rd1 {
[%emt 0:00:00]} Nb4 {[%emt 0:00:00]} 17. Na3 {[%emt 0:00:00]} Nc3 {[%emt 0:00:
00]} 18. Rd2 {[%emt 0:00:00]} Ncxa2 {[%emt 0:00:00]} 19. Ne5 {[%emt 0:00:00]}
Be8 {[%emt 0:00:00]} 20. Re1 {[%emt 0:00:00]} Ra7 {[%emt 0:00:00]} 21. h4 {
[%emt 0:00:00]} Rac7 {[%emt 0:00:00]} 22. Kh2 {[%emt 0:00:00]} h6 {[%emt 0:00:
00]} 23. Ng4 {[%emt 0:00:00]} Qd8 {[%emt 0:00:00]} 24. Re5 {[%emt 0:00:00]} Nc3
{[%emt 0:00:00]} 25. Nc4 {[%emt 0:00:00]} Na4 {[%emt 0:00:00]} 26. bxa4 {
[%emt 0:00:00]} Rxc4 {[%emt 0:00:00]} 27. Ne3 {[%emt 0:00:00]} Qd6 {[%emt 0:00:
00]} 28. Nxc4 {[%emt 0:00:00]} dxc4 {[%emt 0:00:00]} 29. Qc3 {[%emt 0:00:00]}
Bxa4 {[%emt 0:00:00]} 30. d5 {[%emt 0:00:00]} Rd8 {[%emt 0:00:00]} 31. Qxc4 {
[%emt 0:00:00]} Qxe5 {[%emt 0:00:00]} 32. Qxb4 {[%emt 0:00:00]} Be8 {[%emt 0:
00:00]} 33. Qxb6 {[%emt 0:00:00]} Qd6 {[%emt 0:00:00]} 1/2-1/2

[Event "I Liga Centralne Srbije"]
[Site "Bajina Bašta, Serbia"]
[Date "2020.10.17"]
[Round "11.1"]
[White "Vratonjic, Slobo"]
[Black "Pavlovic, Dejan S"]
[Result "1-0"]
[ECO "B31"]
[WhiteElo "2341"]
[BlackElo "2390"]
[Annotator "Knez"]
[PlyCount "79"]
[EventDate "2020.??.??"]
[TimeControl "90"]
[WhiteClock "0:00:32"]
[BlackClock "0:31:15"]

1. e4 {[%emt 0:00:00]} c5 {[%emt 0:00:00]} 2. Nf3 {[%emt 0:00:00]} Nc6 {
[%emt 0:00:00]} 3. Bb5 {[%emt 0:00:00]} g6 {[%emt 0:00:00]} 4. Bxc6 {[%emt 0:
00:00]} dxc6 {[%emt 0:00:00]} 5. h3 {[%emt 0:00:00]} Bg7 {[%emt 0:00:00]} 6. d3
{[%emt 0:00:00]} Nf6 {[%emt 0:00:00]} 7. Be3 {[%emt 0:00:00]} Nd7 {[%emt 0:00:
00]} 8. c3 {[%emt 0:00:00]} b6 {[%emt 0:00:00]} 9. O-O {[%emt 0:00:00]} e5 {
[%emt 0:00:00]} 10. d4 {[%emt 0:00:00]} cxd4 {[%emt 0:00:00]} 11. cxd4 {
[%emt 0:00:00]} O-O {[%emt 0:00:00]} 12. Qd2 {[%emt 0:00:00]} Re8 {[%emt 0:00:
00]} 13. Nc3 {[%emt 0:00:00]} Bb7 {[%emt 0:00:00]} 14. Rfd1 {[%emt 0:00:00]}
Qe7 {[%emt 0:00:00]} 15. d5 {[%emt 0:00:00]} Nf6 {[%emt 0:00:00]} 16. Bg5 {
[%emt 0:00:00]} Rad8 {[%emt 0:00:00]} 17. Qe2 {[%emt 0:00:00]} cxd5 {[%emt 0:
00:00]} 18. exd5 {[%emt 0:00:00]} e4 {[%emt 0:00:00]} 19. Nd4 {[%emt 0:00:00]}
Bxd5 {[%emt 0:00:00]} 20. Nf5 {[%emt 0:00:00]} Qe5 {[%emt 0:00:00]} 21. Nxg7 {
[%emt 0:00:00]} Kxg7 {[%emt 0:00:00]} 22. Qd2 {[%emt 0:00:00]} Bc6 {[%emt 0:00:
00]} 23. Bh6+ {[%emt 0:00:00]} Kg8 {[%emt 0:00:00]} 24. Qxd8 {[%emt 0:00:00]}
Rxd8 {[%emt 0:00:00]} 25. Rxd8+ {[%emt 0:00:00]} Ne8 {[%emt 0:00:00]} 26. Rad1
{[%emt 0:00:00]} f6 {[%emt 0:00:00]} 27. Be3 {[%emt 0:00:00]} Kf7 {[%emt 0:00:
00]} 28. Rc8 {[%emt 0:00:00]} Qe6 {[%emt 0:00:00]} 29. Rdd8 {[%emt 0:00:00]}
Ke7 {[%emt 0:00:00]} 30. Nd5+ {[%emt 0:00:00]} Kf7 {[%emt 0:00:00]} 31. Nc7 {
[%emt 0:00:00]} Qxa2 {[%emt 0:00:00]} 32. Nxe8 {[%emt 0:00:00]} Bxe8 {[%emt 0:
00:00]} 33. Rxe8 {[%emt 0:00:00]} Qxb2 {[%emt 0:00:00]} 34. Red8 {[%emt 0:00:
00]} Qa1+ {[%emt 0:00:00]} 35. Rc1 {[%emt 0:00:00]} Qa4 {[%emt 0:00:00]} 36.
Rd4 {[%emt 0:00:00]} Qa2 {[%emt 0:00:00]} 37. Rxe4 {[%emt 0:00:00]} g5 {
[%emt 0:00:18]} 38. Rc7+ {[%emt 0:00:00]} Kg6 {[%emt 0:00:00]} 39. Ree7 {
[%emt 0:00:00]} a5 {[%emt 0:00:40]} 40. g4 {[%emt 0:00:00]} 1-0

[Event "I Liga Centralne Srbije"]
[Site "Bajina Bašta, Serbia"]
[Date "2020.10.17"]
[Round "11.1"]
[White "Radovanovic, Dusan"]
[Black "Simonovic, Aleksandar"]
[Result "1-0"]
[ECO "C19"]
[WhiteElo "2326"]
[BlackElo "2375"]
[Annotator "Knez"]
[PlyCount "92"]
[EventDate "2020.??.??"]
[TimeControl "90"]
[WhiteClock "0:01:00"]
[BlackClock "0:01:00"]

1. e4 {[%emt 0:00:00]} e6 {[%emt 0:00:00]} 2. d4 {[%emt 0:00:00]} d5 {[%emt 0:
00:00]} 3. Nc3 {[%emt 0:00:00]} Bb4 {[%emt 0:00:00]} 4. e5 {[%emt 0:00:00]} c5
{[%emt 0:00:00]} 5. a3 {[%emt 0:00:00]} Bxc3+ {[%emt 0:00:00]} 6. bxc3 {
[%emt 0:00:00]} Ne7 {[%emt 0:00:00]} 7. h4 {[%emt 0:00:00]} Qc7 {[%emt 0:00:00]
} 8. h5 {[%emt 0:00:00]} h6 {[%emt 0:00:00]} 9. Nf3 {[%emt 0:00:00]} b6 {
[%emt 0:00:00]} 10. a4 {[%emt 0:00:00]} Ba6 {[%emt 0:00:00]} 11. Bb5+ {[%emt 0:
00:00]} Bxb5 {[%emt 0:00:00]} 12. axb5 {[%emt 0:00:00]} a5 {[%emt 0:00:00]} 13.
O-O {[%emt 0:00:00]} Nd7 {[%emt 0:00:00]} 14. Nh4 {[%emt 0:00:00]} Rc8 {
[%emt 0:00:00]} 15. Qg4 {[%emt 0:00:00]} cxd4 {[%emt 0:00:00]} 16. cxd4 {
[%emt 0:00:00]} Qxc2 {[%emt 0:00:00]} 17. Ba3 {[%emt 0:00:00]} Qe4 {[%emt 0:00:
00]} 18. Qxe4 {[%emt 0:00:00]} dxe4 {[%emt 0:00:00]} 19. Rfe1 {[%emt 0:00:00]}
Nd5 {[%emt 0:00:00]} 20. Rxe4 {[%emt 0:00:00]} Nc3 {[%emt 0:00:00]} 21. Ree1 {
[%emt 0:00:00]} Kd8 {[%emt 0:00:00]} 22. Bb2 {[%emt 0:00:00]} Nxb5 {[%emt 0:00:
00]} 23. d5 {[%emt 0:00:00]} Rc2 {[%emt 0:00:00]} 24. Rab1 {[%emt 0:00:00]} Rc5
{[%emt 0:00:00]} 25. dxe6 {[%emt 0:00:00]} fxe6 {[%emt 0:00:00]} 26. Ng6 {
[%emt 0:00:00]} Re8 {[%emt 0:00:00]} 27. Rbd1 {[%emt 0:00:00]} Kc7 {[%emt 0:00:
00]} 28. Re3 {[%emt 0:00:00]} Rc2 {[%emt 0:00:00]} 29. Ba1 {[%emt 0:00:00]} a4
{[%emt 0:00:00]} 30. Rf3 {[%emt 0:00:00]} Nc5 {[%emt 0:00:00]} 31. Rf7+ {
[%emt 0:00:00]} Kc6 {[%emt 0:00:00]} 32. Ne7+ {[%emt 0:00:00]} Rxe7 {[%emt 0:
00:00]} 33. Rxe7 {[%emt 0:00:00]} a3 {[%emt 0:00:00]} 34. Rxg7 {[%emt 0:00:00]}
Nb3 {[%emt 0:00:00]} 35. g4 {[%emt 0:00:00]} Ra2 {[%emt 0:00:09]} 36. g5 {
[%emt 0:00:00]} Rxa1 {[%emt 0:00:00]} 37. Rxa1 {[%emt 0:00:00]} Nxa1 {[%emt 0:
00:00]} 38. gxh6 {[%emt 0:00:03]} a2 {[%emt 0:00:00]} 39. Kh1 {[%emt 0:00:51]}
Nb3 {[%emt 0:00:00]} 40. Rg1 {[%emt 0:00:00]} Nc3 {[%emt 0:00:00]} 41. h7 {
[%emt 0:00:00]} Nb1 {[%emt 0:00:00]} 42. h8=Q {[%emt 0:00:00]} a1=Q {[%emt 0:
00:00]} 43. Qc8+ {[%emt 0:00:00]} Kb5 {[%emt 0:00:00]} 44. Qd7+ {[%emt 0:00:00]
} Kc5 {[%emt 0:00:00]} 45. Qd6+ {[%emt 0:00:00]} Kb5 {[%emt 0:00:21]} 46. Qd3+
{[%emt 0:00:10]} Kc5 {[%emt 0:00:11]} 1-0

[Event "I Liga Centralne Srbije"]
[Site "Bajina Bašta, Serbia"]
[Date "2020.10.17"]
[Round "11.1"]
[White "Ravic, Nenad"]
[Black "Radivojevic, Ivan"]
[Result "1/2-1/2"]
[ECO "B12"]
[WhiteElo "2241"]
[BlackElo "2365"]
[Annotator "Knez"]
[PlyCount "82"]
[EventDate "2020.??.??"]
[TimeControl "90"]
[WhiteClock "0:04:50"]
[BlackClock "0:17:12"]

1. e4 {[%emt 0:00:00]} c6 {[%emt 0:00:00]} 2. d4 {[%emt 0:00:00]} d5 {[%emt 0:
00:00]} 3. e5 {[%emt 0:00:00]} Bf5 {[%emt 0:00:00]} 4. c4 {[%emt 0:00:00]} e6 {
[%emt 0:00:00]} 5. Nc3 {[%emt 0:00:00]} Nd7 {[%emt 0:00:00]} 6. a3 {[%emt 0:00:
00]} dxc4 {[%emt 0:00:00]} 7. Bxc4 {[%emt 0:00:00]} Ne7 {[%emt 0:00:00]} 8.
Nge2 {[%emt 0:00:00]} Nd5 {[%emt 0:00:00]} 9. O-O {[%emt 0:00:00]} Be7 {
[%emt 0:00:00]} 10. Ng3 {[%emt 0:00:00]} N7b6 {[%emt 0:00:00]} 11. Nxf5 {
[%emt 0:00:00]} exf5 {[%emt 0:00:00]} 12. Bd3 {[%emt 0:00:00]} Qd7 {[%emt 0:00:
00]} 13. Qf3 {[%emt 0:00:00]} g6 {[%emt 0:00:00]} 14. Bh6 {[%emt 0:00:00]} Nc7
{[%emt 0:00:00]} 15. Rfd1 {[%emt 0:00:00]} Nbd5 {[%emt 0:00:00]} 16. Ne2 {
[%emt 0:00:00]} Bf8 {[%emt 0:00:00]} 17. Bxf8 {[%emt 0:00:00]} Kxf8 {[%emt 0:
00:00]} 18. Ng3 {[%emt 0:00:00]} Ne6 {[%emt 0:00:00]} 19. Bc4 {[%emt 0:00:00]}
Rd8 {[%emt 0:00:00]} 20. Rd3 {[%emt 0:00:00]} Nb6 {[%emt 0:00:00]} 21. Bxe6 {
[%emt 0:00:00]} Qxe6 {[%emt 0:00:00]} 22. Ne2 {[%emt 0:00:00]} Nd5 {[%emt 0:00:
00]} 23. b4 {[%emt 0:00:00]} Kg7 {[%emt 0:00:00]} 24. Rb1 {[%emt 0:00:00]} Rd7
{[%emt 0:00:00]} 25. h3 {[%emt 0:00:00]} h5 {[%emt 0:00:00]} 26. h4 {[%emt 0:
00:00]} Rhd8 {[%emt 0:00:00]} 27. g3 {[%emt 0:00:00]} Qe7 {[%emt 0:00:00]} 28.
b5 {[%emt 0:00:00]} cxb5 {[%emt 0:00:00]} 29. Rxb5 {[%emt 0:00:00]} a6 {
[%emt 0:00:00]} 30. Rb1 {[%emt 0:00:00]} b5 {[%emt 0:00:00]} 31. Rc1 {[%emt 0:
00:00]} Rc7 {[%emt 0:00:00]} 32. Rc5 {[%emt 0:00:00]} Rxc5 {[%emt 0:00:00]} 33.
dxc5 {[%emt 0:00:00]} Nc7 {[%emt 0:00:00]} 34. Rxd8 {[%emt 0:00:00]} Qxd8 {
[%emt 0:00:00]} 35. Qc6 {[%emt 0:00:00]} Qd1+ {[%emt 0:00:00]} 36. Kg2 {
[%emt 0:00:00]} Ne6 {[%emt 0:00:00]} 37. Nf4 {[%emt 0:00:00]} Nxf4+ {[%emt 0:
00:00]} 38. gxf4 {[%emt 0:00:00]} Qg4+ {[%emt 0:00:00]} 39. Kf1 {[%emt 0:00:00]
} Qd1+ {[%emt 0:00:00]} 40. Kg2 {[%emt 0:00:00]} Qg4+ {[%emt 0:00:00]} 41. Kf1
{[%emt 0:00:00]} Qd1+ {[%emt 0:00:45]} 1/2-1/2

[Event "I Liga Centralne Srbije"]
[Site "Bajina Bašta, Serbia"]
[Date "2020.10.17"]
[Round "11.1"]
[White "Marcetic, Nikola"]
[Black "Djakovac, Enes"]
[Result "1/2-1/2"]
[ECO "D03"]
[WhiteElo "2329"]
[BlackElo "2165"]
[Annotator "Knez"]
[PlyCount "112"]
[EventDate "2020.??.??"]
[TimeControl "90"]
[WhiteClock "0:03:53"]
[BlackClock "0:03:54"]

1. d4 {[%emt 0:00:00]} Nf6 {[%emt 0:00:00]} 2. Bg5 {[%emt 0:00:00]} e6 {
[%emt 0:00:00]} 3. e3 {[%emt 0:00:00]} d5 {[%emt 0:00:00]} 4. Nd2 {[%emt 0:00:
00]} h6 {[%emt 0:00:00]} 5. Bh4 {[%emt 0:00:00]} Nbd7 {[%emt 0:00:00]} 6. Ngf3
{[%emt 0:00:00]} Be7 {[%emt 0:00:00]} 7. Bd3 {[%emt 0:00:00]} b6 {[%emt 0:00:
00]} 8. a4 {[%emt 0:00:00]} a6 {[%emt 0:00:00]} 9. Qe2 {[%emt 0:00:00]} Bb7 {
[%emt 0:00:00]} 10. O-O {[%emt 0:00:00]} Ne4 {[%emt 0:00:00]} 11. Bxe7 {
[%emt 0:00:00]} Qxe7 {[%emt 0:00:00]} 12. c4 {[%emt 0:00:00]} O-O {[%emt 0:00:
00]} 13. cxd5 {[%emt 0:00:00]} exd5 {[%emt 0:00:00]} 14. a5 {[%emt 0:00:00]} b5
{[%emt 0:00:00]} 15. Nb3 {[%emt 0:00:00]} Rac8 {[%emt 0:00:00]} 16. Rfc1 {
[%emt 0:00:00]} Qb4 {[%emt 0:00:00]} 17. Nfd2 {[%emt 0:00:00]} c5 {[%emt 0:00:
00]} 18. Bxe4 {[%emt 0:00:00]} dxe4 {[%emt 0:00:00]} 19. dxc5 {[%emt 0:00:00]}
Nxc5 {[%emt 0:00:00]} 20. Nxc5 {[%emt 0:00:00]} Rxc5 {[%emt 0:00:00]} 21. Rxc5
{[%emt 0:00:00]} Qxc5 {[%emt 0:00:00]} 22. Nb3 {[%emt 0:00:00]} Qb4 {[%emt 0:
00:00]} 23. Nd4 {[%emt 0:00:00]} Rc8 {[%emt 0:00:00]} 24. b3 {[%emt 0:00:00]}
Bd5 {[%emt 0:00:00]} 25. h3 {[%emt 0:00:00]} Qc3 {[%emt 0:00:00]} 26. Qe1 {
[%emt 0:00:00]} Bxb3 {[%emt 0:00:00]} 27. Nxb3 {[%emt 0:00:00]} Qxb3 {[%emt 0:
00:00]} 28. Rd1 {[%emt 0:00:00]} Qe6 {[%emt 0:00:00]} 29. Qd2 {[%emt 0:00:00]}
Kh7 {[%emt 0:00:00]} 30. Qd6 {[%emt 0:00:00]} Rc6 {[%emt 0:00:00]} 31. Qxe6 {
[%emt 0:00:00]} Rxe6 {[%emt 0:00:00]} 32. Rd7 {[%emt 0:00:00]} Kg6 {[%emt 0:00:
00]} 33. g4 {[%emt 0:00:00]} Kf6 {[%emt 0:00:00]} 34. Kg2 {[%emt 0:00:00]} g5 {
[%emt 0:00:00]} 35. Kg3 {[%emt 0:00:00]} Rc6 {[%emt 0:00:00]} 36. Rb7 {[%emt 0:
00:00]} Ke6 {[%emt 0:00:00]} 37. h4 {[%emt 0:00:00]} gxh4+ {[%emt 0:00:00]} 38.
Kxh4 {[%emt 0:00:00]} Kd5 {[%emt 0:00:00]} 39. Rxf7 {[%emt 0:00:00]} b4 {
[%emt 0:00:00]} 40. Rb7 {[%emt 0:00:00]} Kc4 {[%emt 0:00:00]} 41. Kg3 {[%emt 0:
00:00]} b3 {[%emt 0:00:00]} 42. Kf4 {[%emt 0:00:00]} Kc3 {[%emt 0:00:00]} 43.
Kxe4 {[%emt 0:00:00]} b2 {[%emt 0:00:00]} 44. Kd5 {[%emt 0:00:00]} Rc8 {
[%emt 0:00:00]} 45. f4 {[%emt 0:00:00]} Kc2 {[%emt 0:00:00]} 46. f5 {[%emt 0:
00:00]} Rc3 {[%emt 0:00:00]} 47. Rxb2+ {[%emt 0:00:00]} Kxb2 {[%emt 0:00:00]}
48. e4 {[%emt 0:00:00]} Ra3 {[%emt 0:00:00]} 49. f6 {[%emt 0:00:00]} Rxa5+ {
[%emt 0:00:00]} 50. Kd6 {[%emt 0:00:00]} Ra1 {[%emt 0:00:00]} 51. e5 {[%emt 0:
00:00]} Rd1+ {[%emt 0:00:00]} 52. Kc5 {[%emt 0:00:00]} Rf1 {[%emt 0:00:00]} 53.
Kd5 {[%emt 0:00:00]} Rd1+ {[%emt 0:00:00]} 54. Kc5 {[%emt 0:00:00]} Rf1 {
[%emt 0:00:00]} 55. e6 {[%emt 0:00:14]} Rxf6 56. Kd4 {[%emt 0:00:03]} Rf1 {
[%emt 0:00:06]} 1/2-1/2

[Event "I Liga Centralne Srbije"]
[Site "Bajina Bašta, Serbia"]
[Date "2020.10.17"]
[Round "11.2"]
[White "Narancic, Vlado"]
[Black "Kojovic, Dragan"]
[Result "1-0"]
[ECO "A07"]
[WhiteElo "2281"]
[BlackElo "2307"]
[Annotator "Knez"]
[PlyCount "125"]
[EventDate "2020.??.??"]
[TimeControl "90"]
[WhiteClock "0:00:33"]
[BlackClock "0:42:22"]

1. Nf3 {[%emt 0:00:00]} d5 {[%emt 0:00:00]} 2. g3 {[%emt 0:00:00]} g6 {[%emt 0:
00:00]} 3. Bg2 {[%emt 0:00:00]} Bg7 {[%emt 0:00:00]} 4. d3 {[%emt 0:00:00]} Nf6
{[%emt 0:00:00]} 5. c3 {[%emt 0:00:00]} O-O {[%emt 0:00:00]} 6. Nbd2 {[%emt 0:
00:00]} b6 {[%emt 0:00:00]} 7. Qc2 {[%emt 0:00:00]} Nbd7 {[%emt 0:00:00]} 8.
O-O {[%emt 0:00:00]} e5 {[%emt 0:00:00]} 9. Re1 {[%emt 0:00:00]} Bb7 {[%emt 0:
00:00]} 10. e4 {[%emt 0:00:00]} dxe4 {[%emt 0:00:00]} 11. dxe4 {[%emt 0:00:00]}
Re8 {[%emt 0:00:00]} 12. b4 {[%emt 0:00:00]} a5 {[%emt 0:00:00]} 13. a3 {
[%emt 0:00:00]} Qe7 {[%emt 0:00:00]} 14. Bb2 {[%emt 0:00:00]} Rec8 {[%emt 0:00:
00]} 15. Bf1 {[%emt 0:00:00]} Ne8 {[%emt 0:00:00]} 16. Nc4 {[%emt 0:00:00]} Nd6
{[%emt 0:00:00]} 17. Nfd2 {[%emt 0:00:00]} Bh6 {[%emt 0:00:00]} 18. Ne3 {
[%emt 0:00:00]} Nf6 {[%emt 0:00:00]} 19. f3 {[%emt 0:00:00]} c5 {[%emt 0:00:00]
} 20. Qb3 {[%emt 0:00:00]} a4 {[%emt 0:00:00]} 21. Qa2 {[%emt 0:00:00]} b5 {
[%emt 0:00:00]} 22. bxc5 {[%emt 0:00:00]} Rxc5 {[%emt 0:00:00]} 23. c4 {
[%emt 0:00:00]} Ba6 {[%emt 0:00:00]} 24. Bc3 {[%emt 0:00:00]} bxc4 {[%emt 0:00:
00]} 25. Qc2 {[%emt 0:00:00]} Qa7 {[%emt 0:00:36]} 26. Kg2 {[%emt 0:00:00]}
Bxe3 {[%emt 0:00:00]} 27. Rxe3 {[%emt 0:00:00]} Nb5 {[%emt 0:00:11]} 28. Bb4 {
[%emt 0:00:00]} Rcc8 {[%emt 0:00:00]} 29. Rae1 {[%emt 0:00:00]} c3 {[%emt 0:00:
00]} 30. Nb1 {[%emt 0:00:00]} Nd4 {[%emt 0:00:00]} 31. Qf2 {[%emt 0:00:00]}
Bxf1+ {[%emt 0:00:00]} 32. Rxf1 {[%emt 0:00:00]} c2 {[%emt 0:00:00]} 33. Nc3 {
[%emt 0:00:00]} Nb3 {[%emt 0:00:00]} 34. Ree1 {[%emt 0:00:00]} Qxf2+ {[%emt 0:
00:01]} 35. Kxf2 {[%emt 0:00:00]} c1=Q {[%emt 0:00:06]} 36. Rxc1 {[%emt 0:00:
00]} Nxc1 {[%emt 0:00:00]} 37. Rxc1 {[%emt 0:00:00]} Rc4 {[%emt 0:00:00]} 38.
Rd1 {[%emt 0:00:00]} Kg7 {[%emt 0:00:01]} 39. Ke3 {[%emt 0:00:00]} g5 {[%emt 0:
00:01]} 40. Rd2 {[%emt 0:00:00]} h6 {[%emt 0:00:00]} 41. Nb5 {[%emt 0:00:00]}
Rb8 {[%emt 0:00:00]} 42. Nd6 {[%emt 0:00:00]} Rcxb4 {[%emt 0:00:00]} 43. axb4 {
[%emt 0:00:00]} Rxb4 {[%emt 0:00:00]} 44. Nf5+ {[%emt 0:00:00]} Kg6 {[%emt 0:
00:00]} 45. Rd6 {[%emt 0:00:00]} Rb3+ {[%emt 0:00:00]} 46. Ke2 {[%emt 0:00:00]}
g4 {[%emt 0:00:00]} 47. fxg4 {[%emt 0:00:00]} a3 {[%emt 0:00:00]} 48. Ne7+ {
[%emt 0:00:00]} Kg7 {[%emt 0:00:00]} 49. Nf5+ {[%emt 0:00:00]} Kg6 {[%emt 0:00:
00]} 50. Ne7+ {[%emt 0:00:00]} Kg5 {[%emt 0:00:00]} 51. h4+ {[%emt 0:00:00]}
Kxg4 {[%emt 0:00:00]} 52. Rxf6 {[%emt 0:00:00]} a2 {[%emt 0:00:00]} 53. Ra6 {
[%emt 0:00:00]} Rxg3 {[%emt 0:00:00]} 54. Nf5 {[%emt 0:00:00]} Rh3 {[%emt 0:00:
01]} 55. Nxh6+ {[%emt 0:00:00]} Kf4 {[%emt 0:00:00]} 56. Nxf7 {[%emt 0:00:00]}
Rxh4 {[%emt 0:00:00]} 57. Kd3 {[%emt 0:00:00]} Rh7 {[%emt 0:00:00]} 58. Rxa2 {
[%emt 0:00:00]} Rh3+ {[%emt 0:00:00]} 59. Kc4 {[%emt 0:00:00]} Rh1 {[%emt 0:00:
00]} 60. Nd6 {[%emt 0:00:00]} Rd1 {[%emt 0:00:01]} 61. Kc5 {[%emt 0:00:00]}
Rc1+ {[%emt 0:00:00]} 62. Kd5 {[%emt 0:00:00]} Rd1+ {[%emt 0:00:00]} 63. Ke6 {
[%emt 0:00:00]} 1-0

[Event "I Liga Centralne Srbije"]
[Site "Bajina Bašta, Serbia"]
[Date "2020.10.17"]
[Round "11.2"]
[White "Ostojic, Nikola"]
[Black "Djoric, Dusan"]
[Result "1-0"]
[ECO "A28"]
[WhiteElo "2406"]
[BlackElo "2303"]
[Annotator "Knez"]
[PlyCount "71"]
[EventDate "2020.??.??"]
[TimeControl "90"]
[WhiteClock "0:02:08"]
[BlackClock "0:16:36"]

1. c4 {[%emt 0:00:00]} e5 {[%emt 0:00:00]} 2. Nc3 {[%emt 0:00:00]} Nf6 {
[%emt 0:00:00]} 3. Nf3 {[%emt 0:00:00]} Nc6 {[%emt 0:00:00]} 4. e3 {[%emt 0:00:
00]} Bb4 {[%emt 0:00:00]} 5. Qc2 {[%emt 0:00:00]} O-O {[%emt 0:00:00]} 6. a3 {
[%emt 0:00:00]} Bxc3 {[%emt 0:00:00]} 7. Qxc3 {[%emt 0:00:00]} Re8 {[%emt 0:00:
00]} 8. d3 {[%emt 0:00:00]} d5 {[%emt 0:00:00]} 9. cxd5 {[%emt 0:00:00]} Nxd5 {
[%emt 0:00:00]} 10. Qc2 {[%emt 0:00:00]} a5 {[%emt 0:00:00]} 11. Be2 {[%emt 0:
00:00]} a4 {[%emt 0:00:00]} 12. O-O {[%emt 0:00:00]} Be6 {[%emt 0:00:00]} 13.
Bd2 {[%emt 0:00:00]} f6 {[%emt 0:00:00]} 14. Bc3 {[%emt 0:00:00]} Bf7 {[%emt 0:
00:00]} 15. Rfe1 {[%emt 0:00:00]} Qd7 {[%emt 0:00:00]} 16. Bf1 {[%emt 0:00:00]}
Na5 {[%emt 0:00:00]} 17. Bxa5 {[%emt 0:00:00]} Rxa5 {[%emt 0:00:00]} 18. d4 {
[%emt 0:00:00]} exd4 {[%emt 0:00:00]} 19. Nxd4 {[%emt 0:00:00]} Nb6 {[%emt 0:
00:00]} 20. Rad1 {[%emt 0:00:00]} Qe7 {[%emt 0:00:00]} 21. e4 {[%emt 0:00:00]}
g6 {[%emt 0:00:00]} 22. Nb5 {[%emt 0:00:00]} Qe5 {[%emt 0:00:00]} 23. f4 {
[%emt 0:00:00]} Qxf4 {[%emt 0:00:00]} 24. Qc3 {[%emt 0:00:00]} Rxb5 {[%emt 0:
00:00]} 25. Bxb5 {[%emt 0:00:00]} c6 {[%emt 0:00:00]} 26. Qd4 {[%emt 0:00:00]}
Qc7 {[%emt 0:00:00]} 27. Be2 {[%emt 0:00:00]} Kg7 {[%emt 0:00:00]} 28. Rf1 {
[%emt 0:00:00]} Re5 {[%emt 0:00:00]} 29. Rf2 {[%emt 0:00:00]} Be6 {[%emt 0:00:
00]} 30. h3 {[%emt 0:00:00]} c5 {[%emt 0:00:00]} 31. Qc3 {[%emt 0:00:00]} Bb3 {
[%emt 0:00:00]} 32. Rdf1 {[%emt 0:00:00]} Qe7 {[%emt 0:00:00]} 33. Rxf6 {
[%emt 0:00:00]} Qxf6 {[%emt 0:00:00]} 34. Rxf6 {[%emt 0:00:00]} Kxf6 {[%emt 0:
00:00]} 35. h4 {[%emt 0:00:00]} Ke6 {[%emt 0:00:00]} 36. Qa5 {[%emt 0:00:00]
Kd5 [%emt 00:02:28]} 1-0